[Event "Titled Tuesday Blitz May 23 Early 2023"]
[White "Drygalov, Andrey"]
[Black "Sarana, Alexey"]
[WhiteFideId "24171735"]
[BlackFideId "24133795"]
[WhiteElo "2466"]
[BlackElo "2714"]
[Result "0-1"]
[Round "05"]
[TimeControl "180+2"]
[Date "2023.05.23"]
[WhiteClock "0:00:05"]
[BlackClock "0:00:29"]

1. e4 {[%clk 0:03:00]}  c5 {[%clk 0:02:58]} 2. Nf3 {[%clk 0:03:00]}  d6 {[%clk 0:02:59]} 3. Bb5+ {[%clk 0:02:55]}  Bd7 {[%clk 0:02:59]} 4. Bxd7+ {[%clk 0:02:54]}  Nxd7 {[%clk 0:03:00]} 5. O-O {[%clk 0:02:52]}  e6 {[%clk 0:02:58]} 6. b3 {[%clk 0:02:48]}  Be7 {[%clk 0:02:58]} 7. Bb2 {[%clk 0:02:49]}  Bf6 {[%clk 0:02:59]} 8. c3 {[%clk 0:02:49]}  Ne7 {[%clk 0:02:59]} 9. d4 {[%clk 0:02:49]}  O-O {[%clk 0:02:56]} 10. Re1 {[%clk 0:02:49]}  Nc6 {[%clk 0:02:53]} 11. Nbd2 {[%clk 0:02:43]}  cxd4 {[%clk 0:02:46]} 12. cxd4 {[%clk 0:02:41]}  d5 {[%clk 0:02:40]} 13. exd5 {[%clk 0:02:38]}  exd5 {[%clk 0:02:40]} 14. Nf1 {[%clk 0:02:39]}  Re8 {[%clk 0:02:31]} 15. Ne3 {[%clk 0:02:39]}  Nf8 {[%clk 0:02:30]} 16. Qd3 {[%clk 0:02:32]}  Ne6 {[%clk 0:02:27]} 17. Rad1 {[%clk 0:02:32]}  Qa5 {[%clk 0:02:22]} 18. a3 {[%clk 0:02:27]}  Rad8 {[%clk 0:02:21]} 19. b4 {[%clk 0:02:26]}  Qa4 {[%clk 0:02:14]} 20. Ng4 {[%clk 0:02:23]}  Be7 {[%clk 0:02:06]} 21. Rc1 {[%clk 0:02:18]}  a6 {[%clk 0:01:59]} 22. Nge5 {[%clk 0:02:11]}  Nxe5 {[%clk 0:01:58]} 23. Nxe5 {[%clk 0:02:12]}  Bf6 {[%clk 0:01:56]} 24. Ng4 {[%clk 0:02:12]}  Bg5 {[%clk 0:01:56]} 25. Rcd1 {[%clk 0:02:07]}  Rc8 {[%clk 0:01:53]} 26. Bc1 {[%clk 0:01:39]}  Rxc1 {[%clk 0:01:52]} 27. Rxc1 {[%clk 0:01:38]}  Bxc1 {[%clk 0:01:53]} 28. Rxc1 {[%clk 0:00:56]}  Nf4 {[%clk 0:01:52]} 29. Qd1 {[%clk 0:00:52]}  Ne2+ {[%clk 0:01:42]} 30. Kf1 {[%clk 0:00:52]}  Qxa3 {[%clk 0:01:06]} 31. Ra1 {[%clk 0:00:33]}  Qxb4 {[%clk 0:01:00]} 32. Ne3 {[%clk 0:00:30]}  Nxd4 {[%clk 0:00:56]} 33. g3 {[%clk 0:00:29]}  h6 {[%clk 0:00:46]} 34. Kg2 {[%clk 0:00:26]}  Nb3 {[%clk 0:00:38]} 35. Rb1 {[%clk 0:00:15]}  Qe4+ {[%clk 0:00:38]} 36. Kh3 {[%clk 0:00:15]}  Nd2 {[%clk 0:00:31]} 37. Rxb7 {[%clk 0:00:14]}  Nf3 {[%clk 0:00:31]} 38. g4 {[%clk 0:00:07]}  d4 {[%clk 0:00:30]} 39. Qb3 {[%clk 0:00:05]}  Ng5+ {[%clk 0:00:29]} 0-1


[Site "https://www.chess.com"]

[Event "Titled Tuesday Blitz May 23 Early 2023"]
[White "Matlakov, Maxim"]
[Black "Martinez Alcantara, Jose Eduardo"]
[WhiteFideId "4168003"]
[BlackFideId "3805662"]
[WhiteElo "2666"]
[BlackElo "2711"]
[Result "1-0"]
[Round "05"]
[TimeControl "180+2"]
[Date "2023.05.23"]
[WhiteClock "0:00:27"]
[BlackClock "0:00:08"]

1. Nf3 {[%clk 0:02:59]}  Nf6 {[%clk 0:02:57]} 2. g3 {[%clk 0:02:59]}  b6 {[%clk 0:02:54]} 3. Bg2 {[%clk 0:02:59]}  Bb7 {[%clk 0:02:55]} 4. O-O {[%clk 0:02:57]}  g6 {[%clk 0:02:56]} 5. d3 {[%clk 0:02:53]}  c5 {[%clk 0:02:52]} 6. e4 {[%clk 0:02:52]}  d6 {[%clk 0:02:52]} 7. c4 {[%clk 0:02:52]}  Bg7 {[%clk 0:02:51]} 8. Nc3 {[%clk 0:02:53]}  Nc6 {[%clk 0:02:49]} 9. h3 {[%clk 0:02:52]}  Nd7 {[%clk 0:02:46]} 10. Be3 {[%clk 0:02:51]}  Nde5 {[%clk 0:02:43]} 11. Ne1 {[%clk 0:02:49]}  Nd4 {[%clk 0:02:34]} 12. f4 {[%clk 0:02:42]}  Nec6 {[%clk 0:02:34]} 13. a3 {[%clk 0:02:35]}  e6 {[%clk 0:02:31]} 14. Rb1 {[%clk 0:02:35]}  Qd7 {[%clk 0:02:27]} 15. b4 {[%clk 0:02:34]}  O-O {[%clk 0:02:27]} 16. Kh2 {[%clk 0:02:14]}  Rad8 {[%clk 0:02:14]} 17. b5 {[%clk 0:02:12]}  Ne7 {[%clk 0:02:12]} 18. Ne2 {[%clk 0:02:12]}  f5 {[%clk 0:01:38]} 19. Nc2 {[%clk 0:02:04]}  Nxe2 {[%clk 0:01:27]} 20. Qxe2 {[%clk 0:02:05]}  e5 {[%clk 0:01:18]} 21. Rbd1 {[%clk 0:02:04]}  Rde8 {[%clk 0:01:16]} 22. Qd2 {[%clk 0:02:00]}  Kh8 {[%clk 0:01:09]} 23. a4 {[%clk 0:02:00]}  Ng8 {[%clk 0:01:08]} 24. exf5 {[%clk 0:01:55]}  Rxf5 {[%clk 0:00:56]} 25. a5 {[%clk 0:01:43]}  d5 {[%clk 0:00:47]} 26. a6 {[%clk 0:01:27]}  Ba8 {[%clk 0:00:46]} 27. fxe5 {[%clk 0:01:27]}  Rfxe5 {[%clk 0:00:42]} 28. Rde1 {[%clk 0:01:26]}  dxc4 {[%clk 0:00:20]} 29. Bxa8 {[%clk 0:01:27]}  Rxa8 {[%clk 0:00:18]} 30. dxc4 {[%clk 0:01:26]}  Qe6 {[%clk 0:00:18]} 31. Qd3 {[%clk 0:01:07]}  Rh5 {[%clk 0:00:16]} 32. h4 {[%clk 0:01:08]}  Nf6 {[%clk 0:00:12]} 33. Bg5 {[%clk 0:00:58]}  Ng4+ {[%clk 0:00:12]} 34. Kg2 {[%clk 0:00:58]}  Ne5 {[%clk 0:00:13]} 35. Qd5 {[%clk 0:00:54]}  Qxd5+ {[%clk 0:00:08]} 36. cxd5 {[%clk 0:00:55]}  h6 {[%clk 0:00:09]} 37. Bf6 {[%clk 0:00:47]}  Ng4 {[%clk 0:00:09]} 38. Bxg7+ {[%clk 0:00:47]}  Kxg7 {[%clk 0:00:10]} 39. Re7+ {[%clk 0:00:47]}  Kg8 {[%clk 0:00:10]} 40. Re4 {[%clk 0:00:32]}  Ne5 {[%clk 0:00:09]} 41. g4 {[%clk 0:00:33]}  Rxh4 {[%clk 0:00:06]} 42. Rxe5 {[%clk 0:00:32]}  Rxg4+ {[%clk 0:00:07]} 43. Kh3 {[%clk 0:00:32]}  Rc4 {[%clk 0:00:06]} 44. Ne3 {[%clk 0:00:32]}  Rc3 {[%clk 0:00:07]} 45. Re7 {[%clk 0:00:30]}  Rf8 {[%clk 0:00:07]} 46. Rxf8+ {[%clk 0:00:29]}  Kxf8 {[%clk 0:00:08]} 47. d6 {[%clk 0:00:29]}  Rd3 {[%clk 0:00:08]} 48. Kg2 {[%clk 0:00:27]}  Rxd6 {[%clk 0:00:08]} 49. Rxa7 {[%clk 0:00:27]}  Rd4 {[%clk 0:00:08]} 50. Rb7 {[%clk 0:00:27]} 1-0


[Site "https://www.chess.com"]

[Event "Titled Tuesday Blitz May 23 Early 2023"]
[White "Zherebukh, Yaroslav"]
[Black "Svane, Frederik"]
[WhiteFideId "14116804"]
[BlackFideId "12923044"]
[WhiteElo "2531"]
[BlackElo "2502"]
[Result "0-1"]
[Round "05"]
[TimeControl "180+2"]
[Date "2023.05.23"]
[WhiteClock "0:00:00"]
[BlackClock "0:00:03"]

1. Nf3 {[%clk 0:02:59]}  d5 {[%clk 0:02:57]} 2. b3 {[%clk 0:03:00]}  c5 {[%clk 0:02:52]} 3. e3 {[%clk 0:02:59]}  a6 {[%clk 0:02:49]} 4. Bb2 {[%clk 0:02:59]}  Nc6 {[%clk 0:02:49]} 5. d4 {[%clk 0:02:59]}  Bg4 {[%clk 0:02:48]} 6. dxc5 {[%clk 0:02:55]}  e5 {[%clk 0:02:37]} 7. Nbd2 {[%clk 0:02:50]}  Bxc5 {[%clk 0:02:35]} 8. Be2 {[%clk 0:02:45]}  Qe7 {[%clk 0:02:15]} 9. Nxe5 {[%clk 0:02:02]}  Nxe5 {[%clk 0:01:38]} 10. Bxg4 {[%clk 0:02:01]}  d4 {[%clk 0:01:39]} 11. e4 {[%clk 0:01:33]}  Nf6 {[%clk 0:01:38]} 12. Be2 {[%clk 0:01:29]}  Bb4 {[%clk 0:01:35]} 13. O-O {[%clk 0:01:20]}  Rd8 {[%clk 0:01:28]} 14. f4 {[%clk 0:00:41]}  Bxd2 {[%clk 0:01:23]} 15. Qxd2 {[%clk 0:00:42]}  Nxe4 {[%clk 0:01:24]} 16. Qe1 {[%clk 0:00:39]}  Nc6 {[%clk 0:01:02]} 17. Bf3 {[%clk 0:00:37]}  f5 {[%clk 0:01:02]} 18. g4 {[%clk 0:00:21]}  g6 {[%clk 0:00:58]} 19. gxf5 {[%clk 0:00:21]}  gxf5 {[%clk 0:00:58]} 20. Kh1 {[%clk 0:00:21]}  Rg8 {[%clk 0:00:50]} 21. Rd1 {[%clk 0:00:20]}  Rd7 {[%clk 0:00:43]} 22. Rg1 {[%clk 0:00:18]}  Rxg1+ {[%clk 0:00:41]} 23. Kxg1 {[%clk 0:00:18]}  Kd8 {[%clk 0:00:37]} 24. Kh1 {[%clk 0:00:16]}  Kc7 {[%clk 0:00:37]} 25. Qe2 {[%clk 0:00:08]}  Qe6 {[%clk 0:00:31]} 26. Qg2 {[%clk 0:00:05]}  Kb8 {[%clk 0:00:15]} 27. Re1 {[%clk 0:00:03]}  Re7 {[%clk 0:00:15]} 28. Rd1 {[%clk 0:00:04]}  Ka7 {[%clk 0:00:09]} 29. Bxd4+ {[%clk 0:00:03]}  Nxd4 {[%clk 0:00:10]} 30. Rxd4 {[%clk 0:00:04]}  Qb6 {[%clk 0:00:10]} 31. c3 {[%clk 0:00:02]}  Nxc3 {[%clk 0:00:09]} 32. Qd2 {[%clk 0:00:00]}  Nxa2 {[%clk 0:00:03]} 0-1


[Site "https://www.chess.com"]

[Event "Titled Tuesday Blitz May 23 Early 2023"]
[White "Sjugirov, Sanan"]
[Black "Beerdsen, Thomas"]
[WhiteFideId "4189302"]
[BlackFideId "1030108"]
[WhiteElo "2569"]
[BlackElo "2549"]
[Result "1-0"]
[Round "05"]
[TimeControl "180+2"]
[Date "2023.05.23"]
[WhiteClock "0:00:04"]
[BlackClock "0:01:23"]

1. d4 {[%clk 0:03:00]}  Nf6 {[%clk 0:02:59]} 2. c4 {[%clk 0:03:01]}  a6 {[%clk 0:03:00]} 3. Nc3 {[%clk 0:02:59]}  b5 {[%clk 0:02:59]} 4. cxb5 {[%clk 0:02:59]}  axb5 {[%clk 0:03:00]} 5. Nxb5 {[%clk 0:02:59]}  e5 {[%clk 0:03:01]} 6. e3 {[%clk 0:02:55]}  exd4 {[%clk 0:03:00]} 7. exd4 {[%clk 0:02:55]}  Ne4 {[%clk 0:03:00]} 8. Nc3 {[%clk 0:02:42]}  Bb4 {[%clk 0:02:59]} 9. Qc2 {[%clk 0:02:35]}  d5 {[%clk 0:02:48]} 10. Nf3 {[%clk 0:02:26]}  Qe7 {[%clk 0:02:35]} 11. Be3 {[%clk 0:02:08]}  Ra3 {[%clk 0:02:21]} 12. Bb5+ {[%clk 0:01:42]}  c6 {[%clk 0:02:21]} 13. O-O {[%clk 0:01:43]}  Nxc3 {[%clk 0:02:17]} 14. bxa3 {[%clk 0:01:34]}  Nxb5 {[%clk 0:02:14]} 15. axb4 {[%clk 0:01:33]}  Qxb4 {[%clk 0:02:06]} 16. a4 {[%clk 0:01:28]}  Na3 {[%clk 0:02:02]} 17. Qd2 {[%clk 0:01:04]}  Qxd2 {[%clk 0:01:58]} 18. Nxd2 {[%clk 0:01:00]}  Nc2 {[%clk 0:01:57]} 19. Rab1 {[%clk 0:01:01]}  Na6 {[%clk 0:01:55]} 20. Rfc1 {[%clk 0:00:52]}  Ncb4 {[%clk 0:01:54]} 21. Nf3 {[%clk 0:00:42]}  Bf5 {[%clk 0:01:54]} 22. Rb3 {[%clk 0:00:42]}  Ke7 {[%clk 0:01:46]} 23. Bd2 {[%clk 0:00:41]}  Nd3 {[%clk 0:01:44]} 24. Rxc6 {[%clk 0:00:41]}  Ra8 {[%clk 0:01:42]} 25. Rb7+ {[%clk 0:00:36]}  Ke8 {[%clk 0:01:42]} 26. Ne5 {[%clk 0:00:25]}  Nxe5 {[%clk 0:01:40]} 27. dxe5 {[%clk 0:00:25]}  d4 {[%clk 0:01:39]} 28. f3 {[%clk 0:00:21]}  Bd7 {[%clk 0:01:38]} 29. Rd6 {[%clk 0:00:19]}  Bxa4 {[%clk 0:01:37]} 30. Rxd4 {[%clk 0:00:19]}  Nc5 {[%clk 0:01:38]} 31. Rb1 {[%clk 0:00:14]}  Bc2 {[%clk 0:01:38]} 32. Rf1 {[%clk 0:00:08]}  Ne6 {[%clk 0:01:33]} 33. Rd6 {[%clk 0:00:08]}  g6 {[%clk 0:01:30]} 34. Rc1 {[%clk 0:00:08]}  Bf5 {[%clk 0:01:29]} 35. g4 {[%clk 0:00:07]}  Bxg4 {[%clk 0:01:27]} 36. fxg4 {[%clk 0:00:08]}  Ra4 {[%clk 0:01:27]} 37. h3 {[%clk 0:00:09]}  h5 {[%clk 0:01:28]} 38. Be1 {[%clk 0:00:05]}  h4 {[%clk 0:01:26]} 39. Bxh4 {[%clk 0:00:05]}  g5 {[%clk 0:01:23]} 40. Rxe6+ {[%clk 0:00:04]} 1-0


[Site "https://www.chess.com"]

[Event "Titled Tuesday Blitz May 23 Early 2023"]
[White "Salinas Herrera, Pablo"]
[Black "Dubov, Daniil"]
[WhiteFideId "3407128"]
[BlackFideId "24126055"]
[WhiteElo "2546"]
[BlackElo "2793"]
[Result "0-1"]
[Round "05"]
[TimeControl "180+2"]
[Date "2023.05.23"]
[WhiteClock "0:00:01"]
[BlackClock "0:01:44"]

1. d4 {[%clk 0:02:59]}  Nf6 {[%clk 0:02:59]} 2. Nf3 {[%clk 0:02:58]}  d5 {[%clk 0:02:58]} 3. Bf4 {[%clk 0:02:58]}  g6 {[%clk 0:02:57]} 4. e3 {[%clk 0:02:58]}  Bg7 {[%clk 0:02:58]} 5. h3 {[%clk 0:02:58]}  O-O {[%clk 0:02:58]} 6. Be2 {[%clk 0:02:59]}  c5 {[%clk 0:02:58]} 7. c3 {[%clk 0:02:59]}  Nc6 {[%clk 0:02:59]} 8. O-O {[%clk 0:02:59]}  b6 {[%clk 0:02:59]} 9. Nbd2 {[%clk 0:02:59]}  Bb7 {[%clk 0:03:00]} 10. Re1 {[%clk 0:02:59]}  Nd7 {[%clk 0:03:01]} 11. Bh2 {[%clk 0:02:59]}  e5 {[%clk 0:03:01]} 12. dxe5 {[%clk 0:03:00]}  Ncxe5 {[%clk 0:03:02]} 13. Qc2 {[%clk 0:03:00]}  Re8 {[%clk 0:03:01]} 14. Rad1 {[%clk 0:03:00]}  Qe7 {[%clk 0:02:58]} 15. a4 {[%clk 0:03:00]}  Rac8 {[%clk 0:02:53]} 16. a5 {[%clk 0:02:59]}  d4 {[%clk 0:02:54]} 17. Nxe5 {[%clk 0:02:13]}  Bxe5 {[%clk 0:02:50]} 18. Nf1 {[%clk 0:01:42]}  Bxh2+ {[%clk 0:02:40]} 19. Kxh2 {[%clk 0:01:42]}  Qg5 {[%clk 0:02:40]} 20. Ng3 {[%clk 0:01:29]}  h5 {[%clk 0:02:36]} 21. Bf1 {[%clk 0:01:10]}  h4 {[%clk 0:02:25]} 22. Ne2 {[%clk 0:01:10]}  dxe3 {[%clk 0:02:09]} 23. f4 {[%clk 0:00:40]}  Qe7 {[%clk 0:02:08]} 24. axb6 {[%clk 0:00:40]}  Nxb6 {[%clk 0:02:00]} 25. Kg1 {[%clk 0:00:38]}  Rcd8 {[%clk 0:01:57]} 26. Rxd8 {[%clk 0:00:38]}  Rxd8 {[%clk 0:01:58]} 27. f5 {[%clk 0:00:32]}  Rd2 {[%clk 0:01:53]} 28. Qc1 {[%clk 0:00:21]}  gxf5 {[%clk 0:01:50]} 29. Nf4 {[%clk 0:00:19]}  Qe5 {[%clk 0:01:46]} 30. Nd3 {[%clk 0:00:01]}  Qg3 {[%clk 0:01:44]} 0-1


[Site "https://www.chess.com"]

[Event "Titled Tuesday Blitz May 23 Early 2023"]
[White "Karthik Venkataraman"]
[Black "Cordova, Emilio"]
[WhiteFideId "25006479"]
[BlackFideId "3801497"]
[WhiteElo "2419"]
[BlackElo "2607"]
[Result "0-1"]
[Round "05"]
[TimeControl "180+2"]
[Date "2023.05.23"]
[WhiteClock "0:00:58"]
[BlackClock "0:00:31"]

1. Nf3 {[%clk 0:02:59]}  b6 {[%clk 0:02:59]} 2. g3 {[%clk 0:02:55]}  Bb7 {[%clk 0:03:00]} 3. Bg2 {[%clk 0:02:55]}  c5 {[%clk 0:03:00]} 4. O-O {[%clk 0:02:53]}  e6 {[%clk 0:03:00]} 5. c4 {[%clk 0:02:53]}  Nf6 {[%clk 0:03:00]} 6. b3 {[%clk 0:02:53]}  Be7 {[%clk 0:03:00]} 7. Bb2 {[%clk 0:02:53]}  O-O {[%clk 0:03:01]} 8. e3 {[%clk 0:02:53]}  d6 {[%clk 0:03:01]} 9. Nc3 {[%clk 0:02:53]}  Nbd7 {[%clk 0:03:01]} 10. d4 {[%clk 0:02:53]}  cxd4 {[%clk 0:03:01]} 11. exd4 {[%clk 0:02:52]}  Ne4 {[%clk 0:02:52]} 12. Nxe4 {[%clk 0:02:44]}  Bxe4 {[%clk 0:02:51]} 13. Qe2 {[%clk 0:02:42]}  d5 {[%clk 0:02:50]} 14. Rfd1 {[%clk 0:02:42]}  Rc8 {[%clk 0:02:48]} 15. Rac1 {[%clk 0:02:42]}  Nf6 {[%clk 0:02:44]} 16. Bh3 {[%clk 0:02:41]}  h6 {[%clk 0:02:42]} 17. Ne5 {[%clk 0:02:41]}  Kh8 {[%clk 0:02:24]} 18. f3 {[%clk 0:02:11]}  Bh7 {[%clk 0:02:24]} 19. cxd5 {[%clk 0:02:10]}  Rxc1 {[%clk 0:01:42]} 20. Rxc1 {[%clk 0:02:08]}  Nxd5 {[%clk 0:01:42]} 21. Qa6 {[%clk 0:02:02]}  Kg8 {[%clk 0:01:23]} 22. Qxa7 {[%clk 0:01:57]}  Bg5 {[%clk 0:01:19]} 23. f4 {[%clk 0:01:42]}  Bxf4 {[%clk 0:01:18]} 24. gxf4 {[%clk 0:01:35]}  Nxf4 {[%clk 0:01:19]} 25. Bg4 {[%clk 0:01:36]}  Be4 {[%clk 0:01:11]} 26. Ba3 {[%clk 0:01:25]}  Qg5 {[%clk 0:01:08]} 27. Bxf8 {[%clk 0:00:58]}  Nh3+ {[%clk 0:01:05]} 28. Kf1 {[%clk 0:00:58]}  Qxc1+ {[%clk 0:01:03]} 29. Ke2 {[%clk 0:00:59]}  Nf4+ {[%clk 0:00:46]} 30. Kf2 {[%clk 0:00:58]}  Qd2+ {[%clk 0:00:46]} 31. Kg3 {[%clk 0:00:58]}  Qe1+ {[%clk 0:00:31]} 32. Kxf4 {[%clk 0:00:58]}  g5# {[%clk 0:00:31]} 0-1


[Site "https://www.chess.com"]

[Event "Titled Tuesday Blitz May 23 Early 2023"]
[White "Averjanov, Alexey"]
[Black "demon64fields"]
[WhiteFideId "14109867"]
[WhiteElo "2764"]
[BlackElo "2879"]
[Result "1-0"]
[Round "05"]
[TimeControl "180+2"]
[Date "2023.05.23"]
[WhiteClock "0:01:12"]
[BlackClock "0:01:52"]

1. d4 {[%clk 0:03:00]}  g6 {[%clk 0:02:59]} 2. c4 {[%clk 0:03:00]}  Bg7 {[%clk 0:02:59]} 3. Nf3 {[%clk 0:03:00]}  d6 {[%clk 0:02:59]} 4. g3 {[%clk 0:03:00]}  e5 {[%clk 0:02:59]} 5. Bg2 {[%clk 0:02:58]}  exd4 {[%clk 0:02:59]} 6. Nxd4 {[%clk 0:02:57]}  Ne7 {[%clk 0:02:59]} 7. O-O {[%clk 0:02:56]}  Nbc6 {[%clk 0:03:00]} 8. Nxc6 {[%clk 0:02:51]}  bxc6 {[%clk 0:03:01]} 9. Nc3 {[%clk 0:02:48]}  O-O {[%clk 0:03:00]} 10. Qc2 {[%clk 0:02:46]}  Rb8 {[%clk 0:02:55]} 11. b3 {[%clk 0:02:44]}  Bf5 {[%clk 0:02:52]} 12. e4 {[%clk 0:02:34]}  Be6 {[%clk 0:02:51]} 13. Bb2 {[%clk 0:02:33]}  c5 {[%clk 0:02:51]} 14. Rad1 {[%clk 0:02:27]}  Nc6 {[%clk 0:02:50]} 15. Qd2 {[%clk 0:02:25]}  Nd4 {[%clk 0:02:43]} 16. Nd5 {[%clk 0:02:19]}  Bxd5 {[%clk 0:02:39]} 17. exd5 {[%clk 0:02:17]}  Qf6 {[%clk 0:02:37]} 18. Bxd4 {[%clk 0:02:14]}  Qxd4 {[%clk 0:02:38]} 19. Qa5 {[%clk 0:02:08]}  Rb7 {[%clk 0:02:20]} 20. Rxd4 {[%clk 0:02:06]}  Bxd4 {[%clk 0:02:14]} 21. Re1 {[%clk 0:02:04]}  Kg7 {[%clk 0:02:13]} 22. Re7 {[%clk 0:02:01]}  h5 {[%clk 0:02:01]} 23. Rxc7 {[%clk 0:01:59]}  Rbb8 {[%clk 0:02:02]} 24. Re7 {[%clk 0:01:46]}  Rfe8 {[%clk 0:02:01]} 25. Rxe8 {[%clk 0:01:43]}  Rxe8 {[%clk 0:02:02]} 26. Kf1 {[%clk 0:01:43]}  Re5 {[%clk 0:02:02]} 27. Qxa7 {[%clk 0:01:36]}  Rf5 {[%clk 0:02:02]} 28. f4 {[%clk 0:01:34]}  g5 {[%clk 0:02:02]} 29. Be4 {[%clk 0:01:25]}  Rf6 {[%clk 0:02:01]} 30. f5 {[%clk 0:01:25]}  g4 {[%clk 0:02:00]} 31. b4 {[%clk 0:01:18]}  h4 {[%clk 0:02:01]} 32. b5 {[%clk 0:01:15]}  Rh6 {[%clk 0:02:00]} 33. b6 {[%clk 0:01:12]}  hxg3 {[%clk 0:01:59]} 34. hxg3 {[%clk 0:01:13]}  Rh2 {[%clk 0:01:58]} 35. b7 {[%clk 0:01:12]}  Rf2+ {[%clk 0:01:52]} 36. Ke1 {[%clk 0:01:12]} 1-0


[Site "https://www.chess.com"]

[Event "Titled Tuesday Blitz May 23 Early 2023"]
[White "Bacrot, Etienne"]
[Black "Gorovets, Andrey"]
[WhiteFideId "605506"]
[BlackFideId "13504037"]
[WhiteElo "2672"]
[BlackElo "2459"]
[Result "1-0"]
[Round "05"]
[TimeControl "180+2"]
[Date "2023.05.23"]
[WhiteClock "0:00:08"]
[BlackClock "0:00:00"]

1. e4 {[%clk 0:03:00]}  e6 {[%clk 0:02:59]} 2. d3 {[%clk 0:02:59]}  b6 {[%clk 0:02:56]} 3. g3 {[%clk 0:02:58]}  Bb7 {[%clk 0:02:57]} 4. Bg2 {[%clk 0:02:59]}  d5 {[%clk 0:02:57]} 5. Nd2 {[%clk 0:02:58]}  dxe4 {[%clk 0:02:53]} 6. Nxe4 {[%clk 0:02:56]}  Nc6 {[%clk 0:02:51]} 7. Nf3 {[%clk 0:02:55]}  Be7 {[%clk 0:02:50]} 8. O-O {[%clk 0:02:51]}  Nf6 {[%clk 0:02:50]} 9. Ne5 {[%clk 0:02:45]}  Nxe5 {[%clk 0:02:46]} 10. Nxf6+ {[%clk 0:02:45]}  Bxf6 {[%clk 0:02:47]} 11. Bxb7 {[%clk 0:02:45]}  Rb8 {[%clk 0:02:47]} 12. Bg2 {[%clk 0:02:44]}  c5 {[%clk 0:02:21]} 13. Re1 {[%clk 0:02:39]}  Ng6 {[%clk 0:02:16]} 14. Bc6+ {[%clk 0:02:34]}  Ke7 {[%clk 0:02:15]} 15. a4 {[%clk 0:02:27]}  Qd6 {[%clk 0:02:13]} 16. Be4 {[%clk 0:02:25]}  Rbd8 {[%clk 0:02:06]} 17. a5 {[%clk 0:02:23]}  b5 {[%clk 0:02:05]} 18. a6 {[%clk 0:02:23]}  b4 {[%clk 0:02:03]} 19. Qh5 {[%clk 0:02:21]}  Rc8 {[%clk 0:01:52]} 20. Bb7 {[%clk 0:02:12]}  Rc7 {[%clk 0:01:41]} 21. Rb1 {[%clk 0:02:00]}  Rd8 {[%clk 0:01:30]} 22. Be3 {[%clk 0:01:53]}  Bd4 {[%clk 0:01:23]} 23. Bg5+ {[%clk 0:01:34]}  Bf6 {[%clk 0:01:23]} 24. Bd2 {[%clk 0:01:26]}  h6 {[%clk 0:01:03]} 25. Be4 {[%clk 0:01:25]}  Ne5 {[%clk 0:01:03]} 26. Bf4 {[%clk 0:01:16]}  g5 {[%clk 0:01:02]} 27. Bd2 {[%clk 0:01:10]}  Qxa6 {[%clk 0:00:40]} 28. f4 {[%clk 0:01:09]}  Nd7 {[%clk 0:00:37]} 29. fxg5 {[%clk 0:01:05]}  hxg5 {[%clk 0:00:36]} 30. Bxg5 {[%clk 0:01:04]}  Qd6 {[%clk 0:00:32]} 31. Rf1 {[%clk 0:00:58]}  Qd4+ {[%clk 0:00:19]} 32. Kh1 {[%clk 0:00:57]}  Rg8 {[%clk 0:00:17]} 33. Bh4 {[%clk 0:00:49]}  Bxh4 {[%clk 0:00:13]} 34. Qxf7+ {[%clk 0:00:45]}  Kd6 {[%clk 0:00:11]} 35. Qxg8 {[%clk 0:00:45]}  Bf6 {[%clk 0:00:10]} 36. Bg2 {[%clk 0:00:37]}  a5 {[%clk 0:00:10]} 37. Rbe1 {[%clk 0:00:36]}  Be5 {[%clk 0:00:08]} 38. Bh3 {[%clk 0:00:25]}  Qd5+ {[%clk 0:00:08]} 39. Re4 {[%clk 0:00:23]}  c4 {[%clk 0:00:08]} 40. Rd1 {[%clk 0:00:17]}  c3 {[%clk 0:00:05]} 41. b3 {[%clk 0:00:17]}  a4 {[%clk 0:00:05]} 42. Bg2 {[%clk 0:00:15]}  axb3 {[%clk 0:00:05]} 43. Rxb4 {[%clk 0:00:15]}  bxc2 {[%clk 0:00:05]} 44. Rc1 {[%clk 0:00:15]}  Qxd3 {[%clk 0:00:00]} 45. Re4 {[%clk 0:00:08]} 1-0


[Site "https://www.chess.com"]

[Event "Titled Tuesday Blitz May 23 Early 2023"]
[White "Sviridov, Valery"]
[Black "Gareyev, Timur"]
[WhiteFideId "4120680"]
[BlackFideId "14200937"]
[WhiteElo "2457"]
[BlackElo "2563"]
[Result "1-0"]
[Round "05"]
[TimeControl "180+2"]
[Date "2023.05.23"]
[WhiteClock "0:00:18"]
[BlackClock "0:00:00"]

1. d4 {[%clk 0:02:52]}  g6 {[%clk 0:03:00]} 2. e4 {[%clk 0:02:52]}  d6 {[%clk 0:02:52]} 3. Nc3 {[%clk 0:02:52]}  a6 {[%clk 0:02:49]} 4. f4 {[%clk 0:02:52]}  b5 {[%clk 0:02:49]} 5. Nf3 {[%clk 0:02:52]}  Bb7 {[%clk 0:02:49]} 6. Bd3 {[%clk 0:02:53]}  Nd7 {[%clk 0:02:49]} 7. O-O {[%clk 0:02:50]}  c5 {[%clk 0:02:49]} 8. e5 {[%clk 0:02:20]}  cxd4 {[%clk 0:02:43]} 9. Ne4 {[%clk 0:02:20]}  Nc5 {[%clk 0:02:25]} 10. Qe2 {[%clk 0:02:01]}  Rc8 {[%clk 0:02:10]} 11. f5 {[%clk 0:01:24]}  dxe5 {[%clk 0:01:34]} 12. fxg6 {[%clk 0:01:22]}  hxg6 {[%clk 0:01:32]} 13. Nxe5 {[%clk 0:01:22]}  Bxe4 {[%clk 0:01:29]} 14. Bxe4 {[%clk 0:01:23]}  Nxe4 {[%clk 0:01:19]} 15. Qxe4 {[%clk 0:01:22]}  f5 {[%clk 0:01:05]} 16. Qb7 {[%clk 0:01:18]}  Nf6 {[%clk 0:00:44]} 17. Qxa6 {[%clk 0:01:15]}  Rc5 {[%clk 0:00:31]} 18. Bf4 {[%clk 0:00:59]}  Bh6 {[%clk 0:00:31]} 19. Nxg6 {[%clk 0:00:58]}  Bxf4 {[%clk 0:00:31]} 20. Nxf4 {[%clk 0:00:58]}  Qc8 {[%clk 0:00:14]} 21. Qb6 {[%clk 0:00:46]}  Qc6 {[%clk 0:00:14]} 22. Qb8+ {[%clk 0:00:45]}  Qc8 {[%clk 0:00:14]} 23. Qa7 {[%clk 0:00:43]}  Qc7 {[%clk 0:00:14]} 24. Qa8+ {[%clk 0:00:32]}  Qc8 {[%clk 0:00:14]} 25. Qf3 {[%clk 0:00:32]}  Rg8 {[%clk 0:00:13]} 26. Rae1 {[%clk 0:00:32]}  e5 {[%clk 0:00:12]} 27. Nd3 {[%clk 0:00:32]}  e4 {[%clk 0:00:11]} 28. Qh3 {[%clk 0:00:32]}  Rd5 {[%clk 0:00:10]} 29. Nf4 {[%clk 0:00:28]}  Rc5 {[%clk 0:00:09]} 30. Nh5 {[%clk 0:00:28]}  Nxh5 {[%clk 0:00:08]} 31. Qxh5+ {[%clk 0:00:28]}  Kd8 {[%clk 0:00:09]} 32. Qf7 {[%clk 0:00:26]}  Re8 {[%clk 0:00:04]} 33. Qf6+ {[%clk 0:00:22]}  Kc7 {[%clk 0:00:05]} 34. Qxd4 {[%clk 0:00:22]}  Kb7 {[%clk 0:00:04]} 35. c3 {[%clk 0:00:20]}  Qc6 {[%clk 0:00:04]} 36. Qg7+ {[%clk 0:00:19]}  Ka8 {[%clk 0:00:03]} 37. Qf7 {[%clk 0:00:19]}  Rce5 {[%clk 0:00:02]} 38. Re2 {[%clk 0:00:16]}  e3 {[%clk 0:00:02]} 39. Qh5 {[%clk 0:00:17]}  Qc4 {[%clk 0:00:02]} 40. Qf3+ {[%clk 0:00:17]}  Kb8 {[%clk 0:00:03]} 41. Rfe1 {[%clk 0:00:17]}  f4 {[%clk 0:00:02]} 42. b3 {[%clk 0:00:17]}  Qxc3 {[%clk 0:00:02]} 43. Qxf4 {[%clk 0:00:17]}  Ka8 {[%clk 0:00:02]} 44. h4 {[%clk 0:00:18]}  Kb8 {[%clk 0:00:03]} 45. Rxe3 {[%clk 0:00:18]}  Qxe3+ {[%clk 0:00:00]} 46. Rxe3 {[%clk 0:00:18]} 1-0


[Site "https://www.chess.com"]